[Event "*** Titled Tuesday Blitz"]
[Site "Chess.com"]
[Date "2020.01.07"]
[Round "9"]
[White "wonderfultime"]
[Black "Vuk2000"]
[Result "1-0"]
[WhiteElo "2951"]
[BlackElo "2674"]
[TimeControl "180+2"]
[EndTime "15:09:15 PST"]
[Termination "wonderfultime won by resignation"]

1. d4 {[%clk 0:03:01.9]} 1... Nf6 {[%clk 0:03:00.9]} 2. Nf3 {[%clk 0:02:52.9]}
2... e6 {[%clk 0:03:01.8]} 3. g3 {[%clk 0:02:53.9]} 3... d5 {[%clk 0:03:02.6]}
4. Bg2 {[%clk 0:02:55.3]} 4... Be7 {[%clk 0:03:03.6]} 5. O-O {[%clk 0:02:56.8]}
5... O-O {[%clk 0:03:03.7]} 6. c4 {[%clk 0:02:58.7]} 6... dxc4 {[%clk
0:03:05.6]} 7. Qc2 {[%clk 0:02:59.7]} 7... a6 {[%clk 0:03:06.1]} 8. a4 {[%clk
0:02:59.4]} 8... Bd7 {[%clk 0:03:07.1]} 9. Qxc4 {[%clk 0:03:00.7]} 9... Bc6
{[%clk 0:03:06.8]} 10. Nc3 {[%clk 0:03:02]} 10... a5 {[%clk 0:03:06.2]} 11. Bg5
{[%clk 0:03:03]} 11... Na6 {[%clk 0:03:06.2]} 12. Rac1 {[%clk 0:03:02.8]} 12...
Nb4 {[%clk 0:03:05]} 13. Rfd1 {[%clk 0:03:04.3]} 13... h6 {[%clk 0:02:53.6]} 14.
Bxf6 {[%clk 0:03:03.1]} 14... Bxf6 {[%clk 0:02:54.2]} 15. e4 {[%clk 0:03:05]}
15... Bd7 {[%clk 0:02:35.4]} 16. h4 {[%clk 0:03:01]} 16... c6 {[%clk 0:02:35.7]}
17. Qe2 {[%clk 0:02:57.9]} 17... Be7 {[%clk 0:02:22.5]} 18. Ne5 {[%clk
0:02:55.9]} 18... Bd6 {[%clk 0:02:19.8]} 19. Nc4 {[%clk 0:02:54.4]} 19... Bc7
{[%clk 0:02:20.1]} 20. e5 {[%clk 0:02:53.6]} 20... Nd5 {[%clk 0:02:16.3]} 21.
Ne4 {[%clk 0:02:53.4]} 21... Nb6 {[%clk 0:02:05.2]} 22. b3 {[%clk 0:02:51.1]}
22... Nd5 {[%clk 0:02:02.1]} 23. Ncd6 {[%clk 0:02:46.1]} 23... Rb8 {[%clk
0:01:47.7]} 24. Bh3 {[%clk 0:02:12.1]} 24... Qe7 {[%clk 0:01:33]} 25. Nc4 {[%clk
0:02:13.2]} 25... Qb4 {[%clk 0:01:16.8]} 26. Rd3 {[%clk 0:02:06]} 26... b5
{[%clk 0:00:46.9]} 27. Nc5 {[%clk 0:01:46]} 27... Rfd8 {[%clk 0:00:34.8]} 28.
Nd2 {[%clk 0:01:45.5]} 28... Rb6 {[%clk 0:00:30.9]} 29. Nde4 {[%clk 0:01:45]}
29... Qa3 {[%clk 0:00:23.5]} 30. Rcd1 {[%clk 0:01:12.5]} 30... Be8 {[%clk
0:00:22.2]} 31. Qg4 {[%clk 0:01:07.5]} 31... Kh8 {[%clk 0:00:19.4]} 32. Bf1
{[%clk 0:01:02.9]} 32... Ne7 {[%clk 0:00:20.3]} 33. h5 {[%clk 0:00:52.1]} 33...
Nf5 {[%clk 0:00:19.8]} 34. Qf4 {[%clk 0:00:53.5]} 34... Rd5 {[%clk 0:00:15.6]}
35. g4 {[%clk 0:00:54.3]} 35... Nxd4 {[%clk 0:00:16.3]} 36. Rxd4 {[%clk
0:00:55.7]} 36... Bxe5 {[%clk 0:00:17.5]} 37. Qe3 {[%clk 0:00:53.8]} 37... Bxd4
{[%clk 0:00:18.5]} 38. Rxd4 {[%clk 0:00:55.7]} 38... bxa4 {[%clk 0:00:13.5]} 39.
Rxa4 {[%clk 0:00:56.3]} 39... Qb2 {[%clk 0:00:11.4]} 40. Rxa5 {[%clk 0:00:57.7]}
40... Rb8 {[%clk 0:00:09.6]} 41. Qc3 {[%clk 0:00:50.5]} 41... Qxc3 {[%clk
0:00:08.9]} 42. Nxc3 {[%clk 0:00:52.4]} 42... Rg5 {[%clk 0:00:10]} 43. Be2
{[%clk 0:00:52.1]} 43... Re5 {[%clk 0:00:06.8]} 44. Kf1 {[%clk 0:00:52.1]} 44...
f5 {[%clk 0:00:06.8]} 45. f4 {[%clk 0:00:34.2]} 45... Re3 {[%clk 0:00:08]} 46.
Nd1 {[%clk 0:00:35.7]} 46... Rh3 {[%clk 0:00:08.8]} 47. Nf2 {[%clk 0:00:36.2]}
47... Re3 {[%clk 0:00:08.8]} 48. Ra7 {[%clk 0:00:34.5]} 48... fxg4 {[%clk
0:00:09.1]} 49. Nxg4 {[%clk 0:00:36.4]} 49... Rxe2 {[%clk 0:00:07.2]} 50. Kxe2
{[%clk 0:00:38.3]} 50... Bxh5 {[%clk 0:00:08.3]} 51. Kf3 {[%clk 0:00:37]} 51...
Rb5 {[%clk 0:00:09.5]} 52. b4 {[%clk 0:00:34.5]} 52... Rxb4 {[%clk 0:00:09.9]}
53. Kg3 {[%clk 0:00:36.1]} 53... Rc4 {[%clk 0:00:05.9]} 54. Nxe6 {[%clk
0:00:35.7]} 54... Re4 {[%clk 0:00:04.6]} 55. Nxg7 {[%clk 0:00:34]} 55... Bg6
{[%clk 0:00:05.9]} 56. f5 {[%clk 0:00:32.8]} 56... h5 {[%clk 0:00:04.4]} 57. Nf6
{[%clk 0:00:31.6]} 57... Re5 {[%clk 0:00:02.3]} 58. fxg6 {[%clk 0:00:30.6]}
58... Rg5+ {[%clk 0:00:03.6]} 59. Kf4 {[%clk 0:00:32]} 59... Rxg6 {[%clk
0:00:04.9]} 60. Ngxh5 {[%clk 0:00:33.6]} 1-0

[Event "*** Titled Tuesday Blitz"]
[Site "Chess.com"]
[Date "2020.01.07"]
[Round "9"]
[White "Orest_Vovk"]
[Black "guillembaches"]
[Result "0-1"]
[WhiteElo "2418"]
[BlackElo "2338"]
[TimeControl "180+2"]
[EndTime "15:09:15 PST"]
[Termination "guillembaches won by resignation"]

1. g4 {[%clk 0:03:01.9]} 1... e5 {[%clk 0:02:58.4]} 2. Bg2 {[%clk 0:03:00.8]}
2... g6 {[%clk 0:02:56.5]} 3. h3 {[%clk 0:03:00.5]} 3... Bg7 {[%clk 0:02:56.8]}
4. c4 {[%clk 0:03:01]} 4... Ne7 {[%clk 0:02:56.3]} 5. Nc3 {[%clk 0:03:02.2]}
5... O-O {[%clk 0:02:56.1]} 6. d3 {[%clk 0:03:03.3]} 6... c6 {[%clk 0:02:53.4]}
7. Nf3 {[%clk 0:03:03.7]} 7... d5 {[%clk 0:02:53.6]} 8. cxd5 {[%clk 0:03:04]}
8... Nxd5 {[%clk 0:02:49.8]} 9. Nxd5 {[%clk 0:02:54.9]} 9... cxd5 {[%clk
0:02:50.4]} 10. Bg5 {[%clk 0:02:48.2]} 10... Qb6 {[%clk 0:02:41.6]} 11. Qb3
{[%clk 0:02:48.1]} 11... Qxb3 {[%clk 0:02:29.2]} 12. axb3 {[%clk 0:02:50]} 12...
Nc6 {[%clk 0:02:30.1]} 13. O-O {[%clk 0:02:34.5]} 13... Be6 {[%clk 0:02:29.8]}
14. Nd2 {[%clk 0:02:25]} 14... Rfc8 {[%clk 0:02:18.1]} 15. e3 {[%clk 0:02:09.5]}
15... Nb4 {[%clk 0:02:05.8]} 16. d4 {[%clk 0:02:00.5]} 16... exd4 {[%clk
0:01:51.9]} 17. e4 {[%clk 0:02:01.4]} 17... h6 {[%clk 0:01:25.8]} 18. Bh4 {[%clk
0:01:49.1]} 18... Rc2 {[%clk 0:01:24.4]} 19. exd5 {[%clk 0:01:48.7]} 19... Bxd5
{[%clk 0:01:20.4]} 20. Ne4 {[%clk 0:01:41.9]} 20... g5 {[%clk 0:01:13.9]} 21.
Bg3 {[%clk 0:01:40.1]} 21... d3 {[%clk 0:01:14.4]} 22. Ra4 {[%clk 0:01:37.1]}
22... a5 {[%clk 0:01:13.9]} 23. Bd6 {[%clk 0:01:31.6]} 23... b5 {[%clk
0:01:05.4]} 24. Raa1 {[%clk 0:01:06.6]} 24... Bxb2 {[%clk 0:00:57.7]} 25. Rad1
{[%clk 0:00:55.4]} 25... Re8 {[%clk 0:00:54]} 26. Bxb4 {[%clk 0:00:48.8]} 26...
Bxe4 {[%clk 0:00:44.7]} 27. Bxe4 {[%clk 0:00:41.2]} 27... Rxe4 {[%clk
0:00:46.6]} 28. Bxa5 {[%clk 0:00:41.6]} 28... Rd4 {[%clk 0:00:43.4]} 29. Rfe1
{[%clk 0:00:36.3]} 29... d2 {[%clk 0:00:40.8]} 30. Rf1 {[%clk 0:00:28]} 30... b4
{[%clk 0:00:37.6]} 31. Bb6 {[%clk 0:00:26]} 31... Rd3 {[%clk 0:00:35.7]} 32. Be3
{[%clk 0:00:25.5]} 32... Bc3 {[%clk 0:00:28.8]} 33. Kg2 {[%clk 0:00:26.3]} 33...
Kh7 {[%clk 0:00:28.8]} 34. Kf3 {[%clk 0:00:26.7]} 34... Rd7 {[%clk 0:00:28.3]}
35. Rb1 {[%clk 0:00:20.1]} 35... Kg6 {[%clk 0:00:26.3]} 36. Rfd1 {[%clk
0:00:20.7]} 36... h5 {[%clk 0:00:27.3]} 37. Ke2 {[%clk 0:00:19.3]} 37... f5
{[%clk 0:00:26]} 38. gxf5+ {[%clk 0:00:19.7]} 38... Kxf5 {[%clk 0:00:26.8]} 39.
Kf3 {[%clk 0:00:21.1]} 39... g4+ {[%clk 0:00:27.5]} 40. hxg4+ {[%clk 0:00:21.8]}
40... hxg4+ {[%clk 0:00:29.4]} 41. Ke2 {[%clk 0:00:22.7]} 41... Ra2 {[%clk
0:00:27.1]} 42. Bh6 {[%clk 0:00:18.8]} 42... Ke4 {[%clk 0:00:27]} 43. Be3 {[%clk
0:00:18.8]} 43... Rd3 {[%clk 0:00:27.3]} 44. Bh6 {[%clk 0:00:17.6]} 44... g3
{[%clk 0:00:26.3]} 45. fxg3 {[%clk 0:00:17.4]} 45... Rxg3 {[%clk 0:00:27.2]} 46.
Kf2 {[%clk 0:00:13.2]} 46... Rf3+ {[%clk 0:00:26.2]} 47. Ke2 {[%clk 0:00:11.6]}
47... Rh3 {[%clk 0:00:25.7]} 48. Bg5 {[%clk 0:00:11.2]} 48... Rh2+ {[%clk
0:00:24]} 49. Kf1 {[%clk 0:00:11]} 49... Kd3 {[%clk 0:00:23.8]} 50. Kg1 {[%clk
0:00:09.4]} 50... Re2 {[%clk 0:00:24.3]} 51. Bh4 {[%clk 0:00:10.4]} 51... Kc2
{[%clk 0:00:23.4]} 52. Kf1 {[%clk 0:00:09.2]} 52... Rh2 {[%clk 0:00:22.4]} 53.
Bg3 {[%clk 0:00:09.9]} 53... Rh1+ {[%clk 0:00:22.7]} 54. Ke2 {[%clk 0:00:10.9]}
54... Rxd1 {[%clk 0:00:23.3]} 55. Rxd1 {[%clk 0:00:12.1]} 55... Ra1 {[%clk
0:00:22.7]} 56. Rxd2+ {[%clk 0:00:04.1]} 56... Bxd2 {[%clk 0:00:22.4]} 57. Be5
{[%clk 0:00:06]} 57... Re1+ {[%clk 0:00:22.5]} 0-1

[Event "*** Titled Tuesday Blitz"]
[Site "Chess.com"]
[Date "2020.01.07"]
[Round "9"]
[White "Kosche007"]
[Black "arminmusovic"]
[Result "1-0"]
[WhiteElo "2391"]
[BlackElo "2493"]
[TimeControl "180+2"]
[EndTime "15:09:23 PST"]
[Termination "Kosche007 won by resignation"]

1. e4 {[%clk 0:03:01.9]} 1... Nf6 {[%clk 0:02:59.7]} 2. e5 {[%clk 0:03:02.3]}
2... Ng8 {[%clk 0:03:01.3]} 3. d4 {[%clk 0:03:03.3]} 3... d6 {[%clk 0:03:02.7]}
4. Nf3 {[%clk 0:03:02.8]} 4... Bg4 {[%clk 0:03:03.4]} 5. Bc4 {[%clk 0:02:44.5]}
5... e6 {[%clk 0:03:00.9]} 6. h3 {[%clk 0:02:39.8]} 6... Bh5 {[%clk 0:03:01.6]}
7. c3 {[%clk 0:02:32.7]} 7... d5 {[%clk 0:03:00.9]} 8. Be2 {[%clk 0:02:31.3]}
8... a6 {[%clk 0:03:01.4]} 9. O-O {[%clk 0:02:29.8]} 9... c5 {[%clk 0:03:02.3]}
10. a3 {[%clk 0:02:28.7]} 10... Nc6 {[%clk 0:03:02.8]} 11. b4 {[%clk 0:02:29.5]}
11... Bxf3 {[%clk 0:02:57.6]} 12. Bxf3 {[%clk 0:02:29]} 12... cxd4 {[%clk
0:02:59.3]} 13. cxd4 {[%clk 0:02:29.8]} 13... Qb6 {[%clk 0:03:00.5]} 14. Be3
{[%clk 0:02:24.9]} 14... Nge7 {[%clk 0:03:01.7]} 15. Nc3 {[%clk 0:02:08.4]}
15... Nf5 {[%clk 0:03:02.9]} 16. Na4 {[%clk 0:02:02.6]} 16... Qa7 {[%clk
0:03:04.1]} 17. Nc5 {[%clk 0:02:02]} 17... b6 {[%clk 0:03:00.1]} 18. Nb3 {[%clk
0:01:56.8]} 18... Be7 {[%clk 0:02:53.6]} 19. Rc1 {[%clk 0:01:56.5]} 19... Rc8
{[%clk 0:02:52.2]} 20. Qd3 {[%clk 0:01:54.6]} 20... O-O {[%clk 0:02:49.1]} 21.
Be2 {[%clk 0:01:54.2]} 21... b5 {[%clk 0:02:39.5]} 22. Nc5 {[%clk 0:01:52.3]}
22... a5 {[%clk 0:02:26]} 23. Rb1 {[%clk 0:01:15.2]} 23... Rb8 {[%clk
0:02:06.8]} 24. Rfc1 {[%clk 0:01:03.6]} 24... Rfc8 {[%clk 0:01:58.3]} 25. g4
{[%clk 0:01:01.7]} 25... Nxe3 {[%clk 0:01:56.8]} 26. fxe3 {[%clk 0:01:03.6]}
26... Bg5 {[%clk 0:01:44.2]} 27. Kf2 {[%clk 0:01:00.1]} 27... Bh4+ {[%clk
0:01:38.9]} 28. Kg2 {[%clk 0:00:55]} 28... Rf8 {[%clk 0:01:26.7]} 29. Rf1 {[%clk
0:00:25.8]} 29... axb4 {[%clk 0:01:12.5]} 30. axb4 {[%clk 0:00:26.2]} 30... Qe7
{[%clk 0:01:04]} 31. Bf3 {[%clk 0:00:18.9]} 31... f6 {[%clk 0:01:01.5]} 32. exf6
{[%clk 0:00:19.2]} 32... Rxf6 {[%clk 0:01:02.1]} 33. e4 {[%clk 0:00:20]} 33...
Kh8 {[%clk 0:00:56.9]} 34. exd5 {[%clk 0:00:19.2]} 34... Qd6 {[%clk 0:00:54.2]}
35. Ne4 {[%clk 0:00:14.2]} 35... Nxb4 {[%clk 0:00:31.6]} 36. Qd2 {[%clk
0:00:15.4]} 36... Qc7 {[%clk 0:00:21.6]} 37. Qxb4 {[%clk 0:00:11.3]} 37... Rf4
{[%clk 0:00:22.8]} 38. d6 {[%clk 0:00:09.2]} 38... Qc2+ {[%clk 0:00:23.8]} 39.
Nf2 {[%clk 0:00:05.7]} 39... h5 {[%clk 0:00:24.5]} 40. Rb2 {[%clk 0:00:06.7]}
40... Qg6 {[%clk 0:00:25]} 41. Qd2 {[%clk 0:00:06.8]} 41... Rbf8 {[%clk
0:00:24.8]} 42. Rxb5 {[%clk 0:00:07.1]} 42... Rxf3 {[%clk 0:00:23.5]} 43. Rxh5+
{[%clk 0:00:07.1]} 43... Kg8 {[%clk 0:00:22.1]} 44. Rxh4 {[%clk 0:00:08.5]}
44... Qf6 {[%clk 0:00:19.9]} 45. Rh5 {[%clk 0:00:09.4]} 45... Qd8 {[%clk
0:00:20.4]} 46. Re5 {[%clk 0:00:09]} 46... Qxd6 {[%clk 0:00:21.5]} 47. Qe2
{[%clk 0:00:10.4]} 47... Qc6 {[%clk 0:00:22.3]} 48. Qe4 {[%clk 0:00:10.7]} 48...
Qc3 {[%clk 0:00:20.1]} 49. Rxe6 {[%clk 0:00:11]} 49... Rg3+ {[%clk 0:00:20.8]}
50. Kh2 {[%clk 0:00:10.2]} 50... Rxf2+ {[%clk 0:00:18.9]} 51. Rxf2 {[%clk
0:00:10.6]} 51... Rxh3+ {[%clk 0:00:20.5]} 52. Kg1 {[%clk 0:00:09.8]} 52... Rg3+
{[%clk 0:00:16]} 53. Rg2 {[%clk 0:00:10.9]} 53... Qa1+ {[%clk 0:00:14.9]} 54.
Kh2 {[%clk 0:00:11.2]} 54... Rxg2+ {[%clk 0:00:14.9]} 55. Kxg2 {[%clk
0:00:12.3]} 55... Qb2+ {[%clk 0:00:15.5]} 56. Kg3 {[%clk 0:00:12.5]} 56... Qc3+
{[%clk 0:00:16.7]} 57. Kf4 {[%clk 0:00:13.5]} 57... Qc7+ {[%clk 0:00:17.6]} 58.
Qe5 {[%clk 0:00:14]} 58... Qc1+ {[%clk 0:00:19.2]} 59. Qe3 {[%clk 0:00:12.7]}
59... Qc7+ {[%clk 0:00:18.5]} 60. Kg5 {[%clk 0:00:13]} 60... Qd8+ {[%clk
0:00:18.7]} 61. Kh5 {[%clk 0:00:13.4]} 61... g6+ {[%clk 0:00:16]} 62. Rxg6+
{[%clk 0:00:12.8]} 62... Kf7 {[%clk 0:00:16.6]} 63. Qe6+ {[%clk 0:00:13.2]} 1-0

[Event "*** Titled Tuesday Blitz"]
[Site "Chess.com"]
[Date "2020.01.07"]
[Round "9"]
[White "Roenko_Artur"]
[Black "Karina_Ivanova"]
[Result "1/2-1/2"]
[WhiteElo "2242"]
[BlackElo "2158"]
[TimeControl "180+2"]
[EndTime "15:10:28 PST"]
[Termination "Game drawn by repetition"]

1. e4 {[%clk 0:02:26.1]} 1... c6 {[%clk 0:02:59.5]} 2. d4 {[%clk 0:02:26.8]}
2... d5 {[%clk 0:03:00.7]} 3. exd5 {[%clk 0:02:28.7]} 3... cxd5 {[%clk
0:03:01.1]} 4. Bd3 {[%clk 0:02:30.1]} 4... Nc6 {[%clk 0:03:01.3]} 5. c3 {[%clk
0:02:31.3]} 5... g6 {[%clk 0:03:01.8]} 6. Bf4 {[%clk 0:02:31.4]} 6... Bg7 {[%clk
0:03:02.6]} 7. Nd2 {[%clk 0:02:26.4]} 7... Nf6 {[%clk 0:03:02.2]} 8. h3 {[%clk
0:02:27.1]} 8... Bf5 {[%clk 0:03:02.8]} 9. Bxf5 {[%clk 0:02:27.7]} 9... gxf5
{[%clk 0:03:03.8]} 10. g4 {[%clk 0:02:26.2]} 10... fxg4 {[%clk 0:03:01.8]} 11.
hxg4 {[%clk 0:02:25.8]} 11... Qd7 {[%clk 0:03:01.9]} 12. g5 {[%clk 0:02:24.3]}
12... Ne4 {[%clk 0:03:00.9]} 13. Nxe4 {[%clk 0:02:17.6]} 13... dxe4 {[%clk
0:03:01.3]} 14. Qe2 {[%clk 0:02:18]} 14... Qf5 {[%clk 0:02:57.6]} 15. Be3 {[%clk
0:02:05.2]} 15... O-O-O {[%clk 0:02:47]} 16. O-O-O {[%clk 0:02:01.8]} 16... Qd5
{[%clk 0:02:44.5]} 17. Kb1 {[%clk 0:02:00]} 17... e5 {[%clk 0:02:43.6]} 18. c4
{[%clk 0:01:51.8]} 18... Qa5 {[%clk 0:02:37.6]} 19. d5 {[%clk 0:01:48.4]} 19...
Nd4 {[%clk 0:02:26]} 20. Qg4+ {[%clk 0:01:40.2]} 20... Kb8 {[%clk 0:02:25.4]}
21. Qxe4 {[%clk 0:01:41]} 21... f5 {[%clk 0:02:20.9]} 22. gxf6 {[%clk
0:01:40.5]} 22... Bxf6 {[%clk 0:02:20.9]} 23. Nf3 {[%clk 0:01:38.5]} 23... Nxf3
{[%clk 0:02:18.3]} 24. Qxf3 {[%clk 0:01:39.2]} 24... Bg7 {[%clk 0:02:14]} 25.
Qe4 {[%clk 0:01:33.6]} 25... Qb4 {[%clk 0:02:10.3]} 26. Bd2 {[%clk 0:01:30]}
26... Qc5 {[%clk 0:02:06]} 27. Rxh7 {[%clk 0:01:12.2]} 27... Rxh7 {[%clk
0:02:05]} 28. Qxh7 {[%clk 0:01:13.1]} 28... Bh8 {[%clk 0:02:06.1]} 29. Bg5
{[%clk 0:01:07.3]} 29... Rc8 {[%clk 0:02:02.8]} 30. Be3 {[%clk 0:00:55.4]} 30...
Qxc4 {[%clk 0:01:49.4]} 31. Rc1 {[%clk 0:00:55.1]} 31... Qg4 {[%clk 0:01:48.5]}
32. Rxc8+ {[%clk 0:00:44.3]} 32... Qxc8 {[%clk 0:01:45.7]} 33. d6 {[%clk
0:00:34.8]} 33... Bf6 {[%clk 0:01:34.1]} 34. d7 {[%clk 0:00:26.3]} 34... Qd8
{[%clk 0:01:34.2]} 35. Qf7 {[%clk 0:00:21]} 35... b6 {[%clk 0:01:26.7]} 36. Bd2
{[%clk 0:00:20]} 36... Kc7 {[%clk 0:01:16.9]} 37. Be3 {[%clk 0:00:21]} 37... Be7
{[%clk 0:01:11.1]} 38. Qc4+ {[%clk 0:00:18.5]} 38... Kxd7 {[%clk 0:00:54.6]} 39.
Qb5+ {[%clk 0:00:16.1]} 39... Ke6 {[%clk 0:00:53.2]} 40. Qc4+ {[%clk 0:00:14.7]}
40... Qd5 {[%clk 0:00:52.5]} 41. Qc8+ {[%clk 0:00:14.9]} 41... Qd7 {[%clk
0:00:52.5]} 42. Qg8+ {[%clk 0:00:15.5]} 42... Kf5 {[%clk 0:00:49.3]} 43. Qf7+
{[%clk 0:00:11.7]} 43... Ke4 {[%clk 0:00:44.6]} 44. Qg6+ {[%clk 0:00:11.1]}
44... Kd5 {[%clk 0:00:44.4]} 45. Qd3+ {[%clk 0:00:10.5]} 45... Ke6 {[%clk
0:00:44.1]} 46. Qg6+ {[%clk 0:00:10]} 46... Kd5 {[%clk 0:00:43.3]} 47. Qg2+
{[%clk 0:00:09.9]} 47... Ke6 {[%clk 0:00:41]} 48. Qg4+ {[%clk 0:00:10]} 48...
Kd6 {[%clk 0:00:42.1]} 49. Qf3 {[%clk 0:00:09.8]} 49... Kc7 {[%clk 0:00:36.4]}
50. a3 {[%clk 0:00:11.3]} 50... Qd3+ {[%clk 0:00:36.2]} 51. Ka1 {[%clk
0:00:09.7]} 51... Qf1+ {[%clk 0:00:34.9]} 52. Ka2 {[%clk 0:00:10.7]} 52... Qc4+
{[%clk 0:00:35.8]} 53. Kb1 {[%clk 0:00:11.8]} 53... Qf1+ {[%clk 0:00:36.1]} 54.
Kc2 {[%clk 0:00:12.9]} 54... Qc4+ {[%clk 0:00:36.7]} 55. Kd2 {[%clk 0:00:12.1]}
55... Qc6 {[%clk 0:00:33.8]} 56. Qxc6+ {[%clk 0:00:11.4]} 56... Kxc6 {[%clk
0:00:34.4]} 57. Kd3 {[%clk 0:00:13]} 57... Kd5 {[%clk 0:00:34.5]} 58. a4 {[%clk
0:00:12.7]} 58... e4+ {[%clk 0:00:34.3]} 59. Kc3 {[%clk 0:00:08.8]} 59... Bf6+
{[%clk 0:00:26.5]} 60. Kb3 {[%clk 0:00:09.4]} 60... Bd4 {[%clk 0:00:23.6]} 61.
Kc2 {[%clk 0:00:08.1]} 61... Bxe3 {[%clk 0:00:20.9]} 62. fxe3 {[%clk 0:00:09.5]}
62... Kc4 {[%clk 0:00:22.3]} 63. b3+ {[%clk 0:00:09.7]} 63... Kb4 {[%clk
0:00:22.7]} 64. Kb2 {[%clk 0:00:10.8]} 64... a6 {[%clk 0:00:20.1]} 65. Kc2
{[%clk 0:00:11.5]} 65... b5 {[%clk 0:00:20.2]} 66. axb5 {[%clk 0:00:11.5]} 66...
axb5 {[%clk 0:00:20.8]} 67. Kb2 {[%clk 0:00:12.9]} 67... Kc5 {[%clk 0:00:21]}
68. Kc3 {[%clk 0:00:14.3]} 68... b4+ {[%clk 0:00:21]} 69. Kd2 {[%clk 0:00:15.3]}
69... Kd5 {[%clk 0:00:22.1]} 70. Ke2 {[%clk 0:00:16.5]} 70... Ke5 {[%clk
0:00:22.7]} 71. Kf2 {[%clk 0:00:16.9]} 71... Kf5 {[%clk 0:00:23.9]} 72. Kg3
{[%clk 0:00:18]} 72... Kg5 {[%clk 0:00:24.8]} 73. Kh3 {[%clk 0:00:19.2]} 73...
Kh5 {[%clk 0:00:25.8]} 74. Kg3 {[%clk 0:00:20.7]} 74... Kg5 {[%clk 0:00:27.1]}
75. Kh3 {[%clk 0:00:21.8]} 75... Kh5 {[%clk 0:00:28.1]} 76. Kg3 {[%clk 0:00:23]}
76... Kg5 {[%clk 0:00:28.7]} 1/2-1/2